Cogmind - Beta 15 @@@ ROGUE MODE // 2025.05.07 @ 16:22:53 Player: Minty Result: Destroyed by S-43 Plague with Heavy Machine Gun Performance ------------- Evolutions (7) 3500 Regions Visited (8) 1600 Robots Destroyed (34) 170 Value Destroyed (1658) 1658 Prototype IDs (13) 260 Alien Tech Used (0) 0 Bonus (800) 800 TOTAL SCORE: 7988 Bonus ------- Registered with UFD 300 Met Optimus in HQ 500 Cogmind --------- Core Integrity 0/1300 Matter 236/300 Energy 93/100 System Corruption 7% Temperature Cool (0) Movement Core (50) Location -3/Research Parts ------- > --- POWER (2) -------- (None) > --- PROPULSION (7) --- (None) > --- UTILITY (8) ------ (None) > --- WEAPON (4) ------- (None) > --- INVENTORY (5) ---- Micro Antimatter Reactor Long-range Sensor Array Advanced Micro-nuke Launcher Advanced Micro-nuke Launcher Multitool Peak State ------------ > --- POWER ------------ Particle Reactor Micro Antimatter Reactor > --- PROPULSION ------- Medium Treads Armored Medium Treads Antigrav System Improved Antigrav System Improved Antigrav System Improved Antigrav System Improved Antigrav System > --- UTILITY ---------- Advanced Heat Sink Advanced Cooling System Small Storage Unit Spectral Analyzer Target Analyzer Core Analyzer Makeshift System Shield A0-MCA's Component Scanner > --- WEAPON ----------- Gamma Rifle Gamma Rifle Quantum Rifle Cooled Phase Cannon > --- INVENTORY -------- Advanced Heat Sink Long-range Sensor Array Improved Transmission Jammer Advanced Transmission Jammer Cooled Phase Cannon Heavy Gauss Cannon Improved Plasma Cutter Multitool [Rating: 137] Favorites ----------- Power Ion Engine Engine Ion Engine Power Core Micro Fission Core Reactor Particle Reactor Propulsion Light Treads Treads Light Treads Leg Aluminum Leg Wheel Compact Wheel Hover Unit Linear Gravjet Flight Unit Nuclear Pulse Array Utility Small Storage Unit Device Advanced Cooling System Storage Small Storage Unit Processor Spectral Analyzer Hackware Makeshift System Shield Weapon Medium Laser Energy Gun Medium Laser Energy Cannon Cooled Phase Cannon Ballistic Gun KE Penetrator Ballistic Cannon Battle Cannon Launcher Grenade Launcher Special Weapon Improved Plasma Cutter Build | -11 -10 -10 -7 -5 -4 -4 -4 -3 ------- Run | Yrd Mat Sub Scr Fac Fac Upp Upp Res Slots Evolved 14 | . . . . 10 2 . . 2 Power 1 | . . . . 1 . . . . Propulsion 5 | . . . . 5 . . . . Utility 6 | . . . . 2 2 . . 2 Weapon 2 | . . . . 2 . . . . Parts Attached 73 | . 6 6 6 14 16 1 . 24 Power 7 | . 1 . . 1 2 . . 3 Engine 1 | . 1 . . . . . . . Core 3 | . . . . 1 2 . . . Reactor 3 | . . . . . . . . 3 Propulsion 22 | . 2 . 2 5 3 1 . 9 Treads 4 | . 2 . . . . . . 2 Leg . | . . . . . . . . . Wheel 2 | . . . 2 . . . . . Hover 9 | . . . . 3 . 1 . 5 Flight 7 | . . . . 2 3 . . 2 Utility 14 | . . 1 3 2 4 . . 4 Device 9 | . . 1 2 . 3 . . 3 Storage . | . . . . . . . . . Processor 4 | . . . 1 2 1 . . . Hackware 1 | . . . . . . . . 1 Protection . | . . . . . . . . . Artifact . | . . . . . . . . . Weapon 30 | . 3 5 1 6 7 . . 8 Energy Gun 15 | . 2 4 1 3 2 . . 3 Energy Cannon 2 | . . . . . . . . 2 Ballistic Gun 5 | . . . . 1 4 . . . Ballistic Cannon 2 | . . 1 . . 1 . . . Launcher 3 | . 1 . . . . . . 2 Special Weapon 3 | . . . . 2 . . . 1 Impact Weapon . | . . . . . . . . . Slashing Weapon . | . . . . . . . . . Piercing Weapon . | . . . . . . . . . Special Melee Weapon . | . . . . . . . . . Unidentified Prototypes 1 | . . . . . . . . 1 Parts Lost 22 | . . . . 3 3 . . 16 Power 2 | . . . . 1 . . . 1 Propulsion 14 | . . . . 2 2 . . 10 Utility 4 | . . . . . . . . 4 Weapon 2 | . . . . . 1 . . 1 Highest Loss Streak 9 | . . . . 2 2 . . 9 To Critical Strikes . | . . . . . . . . . Average Backups 7 | . 7 8 7 7 7 8 8 7 Power . | . . . . . . . . . Propulsion 1 | . 2 2 2 1 1 . . . Utility 1 | . . . . 2 2 3 5 3 Weapon 3 | . 4 5 4 2 1 1 1 1 Tool/Special . | . . . . . . . . . Unused Backups 14 | . 5 1 1 1 . 1 . 5 Power 1 | . 1 . . . . . . . Propulsion 2 | . 2 . . . . . . . Utility 6 | . 1 . 1 . . . . 4 Weapon 4 | . 1 1 . 1 . . . 1 Tool/Special 1 | . . . . . . 1 . . Average Slot Usage (%) 81 | . 85 90 98 55 75 75 78 59 Engine 8 | . 14 14 14 3 . . . . Core 1 | . . . . . 8 10 10 2 Treads 15 | . 16 28 26 2 . . . 1 Hover 2 | . . . . 8 3 2 5 6 Flight 3 | . . . . 4 16 15 15 5 Device 5 | . . 4 9 . 5 5 5 5 Storage 9 | . 14 14 14 5 5 5 5 2 Processor 8 | . . . 3 12 20 21 21 16 Energy Gun 12 | . 19 27 13 4 6 5 5 4 Ballistic Gun 1 | . 7 . . 2 6 10 10 . Ballistic Cannon 4 | . . . 14 1 1 . . . Peak Build Rating 137 | . 6 10 17 99 105 104 104 137 Average Rating 41 | . 5 7 12 49 96 100 104 83 On Entrance 49 | 6 6 6 10 17 93 98 104 104 Naked Turns 35 | . . . . . . . . 35 Heaviest Build 73 | 12 15 20 19 25 39 33 33 73 Greatest Support 71 | 20 40 40 40 27 41 33 33 71 Greatest Overweight (x) 5 | . . . . 1 . . . 5 Average Overweight (x) . | . . . . . . . . . Largest Inventory Capacity 8 | . 8 8 8 8 8 8 8 8 Average Capacity 7 | . 8 8 8 8 8 8 8 7 Most Carried 8 | . 8 8 8 8 8 8 8 8 Average Carried 7 | . 7 8 7 7 7 7 8 6 Final Capacity 8 | 8 8 8 8 8 8 8 8 5 Final Carried 8 | 6 8 8 8 8 8 8 8 5 Class Distribution -------------------- 72% | Mutant 16% | Scavenger-Gunner 4% | Sprinter 3% | Gunner Dominant Class ---------------- Mutant | -10/Materials Mutant | -10/Subcaves Mutant | -7/Scraptown Sprinter | -5/Factory Scavenger-Gunner | -4/Factory Scavenger-Gunner | -4/Upper Caves Scavenger-Gunner | -4/Upper Caves Mutant | -3/Research Resources | -11 -10 -10 -7 -5 -4 -4 -4 -3 ----------- Run | Yrd Mat Sub Scr Fac Fac Upp Upp Res Matter Collected 1346 | 189 . 111 . 235 309 287 . 215 Remotely . | . . . . . . . . . Salvage Created 1569 | . . 240 . 286 296 183 . 564 Parts 84 | . . 17 . 16 15 11 . 25 Haulers Intercepted . | . . . . . . . . . Recyclers Shooed 1 | . . . . . . . . 1 Parts Field Recycled . | . . . . . . . . . Retrieved Matter . | . . . . . . . . . Parts Self-Destructed 12 | . . 10 . . . 2 . . Prevented 6 | . . . . . . 6 . . Kills | -11 -10 -10 -7 -5 -4 -4 -4 -3 ------- Run | Yrd Mat Sub Scr Fac Fac Upp Upp Res Combat Hostiles Destroyed 33 | . . 7 . 7 7 1 . 11 Guns 15 | . . 7 . 1 6 1 . . Cannons 11 | . . . . 1 1 . . 9 AOE 7 | . . . . 5 . . . 2 Classes Destroyed 8 | . . 4 . 2 1 1 . . Operator 1 | . . . . . 1 . . . Swarmer 15 | . . 3 . 2 4 . . 6 Grunt 5 | . . 2 . 3 . . . . Sentry 5 | . . . . 1 1 1 . 2 Programmer 6 | . . . . 1 2 . . 3 Artisan 1 | . . 1 . . . . . . Subdweller 2 | . . 2 . . . . . . Samaritan 2 | . . . . . . 2 . . Best Kill Streak 4 | . . 3 . 3 4 1 . 4 Combat Bots Only 4 | . . 3 . 3 4 1 . 4 Max Kills in Single Turn 2 | . . 1 . 2 1 1 . 2 Gunslinging . | . . . . . . . . . Exploded 2 | . . . . 2 . . . 2 Melee . | . . . . . . . . . Uniques/NPCs Destroyed . | . . . . . . . . . Combat | -11 -10 -10 -7 -5 -4 -4 -4 -3 -------- Run | Yrd Mat Sub Scr Fac Fac Upp Upp Res Hostile Shots Fired 377 | . . 27 . 57 46 10 . 237 Missed 141 | . . 6 . 23 13 5 . 94 Hits 236 | . . 21 . 34 33 5 . 143 Projectile 236 | . . 21 . 34 33 5 . 143 Critical Strikes 12 | . . 1 . . 4 . . 7 Damage Taken 4790 | . . 273 . 728 632 115 . 3042 Core 1504 | . . 59 . 61 57 25 . 1302 Absorbed by Shields . | . . . . . . . . . Core Remaining (%) 90 | 100 . . 76 93 . . 92 . Volleys Fired 117 | . . 17 . 13 32 12 . 43 Largest 4 | . . 2 . 4 3 3 . 4 Hottest 284 | . . 120 . 156 149 149 . 284 Shots Fired 216 | . . 30 . 31 65 24 . 66 Gun 154 | . . 30 . 24 61 24 . 15 Cannon 55 | . . . . 3 4 . . 48 Launcher 7 | . . . . 4 . . . 3 Special . | . . . . . . . . . Kinetic 67 | . . . . 13 42 12 . . Thermal 114 | . . 30 . 7 20 4 . 53 Explosive 7 | . . . . 4 . . . 3 Electromagnetic 28 | . . . . 7 3 8 . 10 Robot Hit Streak 15 | . . 15 . 9 5 7 . 7 Robot Miss Streak 4 | . . 4 . 2 3 2 . 4 Penetration Max 1 | . . . . 1 1 . . . Secondary Targets 2 | . . 2 . . . . . . Max Gunslinging Chain 1 | . . 1 . . . . . . Shots Hit Robots 127 | . . 20 . 25 30 17 . 35 Core Hits 74 | . . 11 . 20 14 9 . 20 Critical Kills 1 | . . . . . 1 . . . Critical Parts Destroyed 1 | . . . . . 1 . . . Critical Strikes 7 | . . 3 . 1 3 . . . Burn 3 | . . 2 . 1 . . . . Destroy 3 | . . 1 . . 2 . . . Blast 1 | . . . . . 1 . . . Melee Attacks . | . . . . . . . . . Impact . | . . . . . . . . . Slashing . | . . . . . . . . . Piercing . | . . . . . . . . . Sneak Attacks . | . . . . . . . . . Combat Hostiles . | . . . . . . . . . Follow-up Attacks . | . . . . . . . . . Damage Inflicted 4416 | . 10 342 . 993 809 324 . 1938 Guns 1882 | . . 342 . 385 702 324 . 129 Cannons 1723 | . . . . 46 107 . . 1570 Explosions 793 | . . . . 562 . . . 231 Melee . | . . . . . . . . . Ramming 18 | . 10 . . . . . . 8 Kinetic 1168 | . . . . 278 683 207 . . Thermal 2180 | . . 342 . 77 84 49 . 1628 Explosive 793 | . . . . 562 . . . 231 Electromagnetic 257 | . . . . 76 42 68 . 71 Impact . | . . . . . . . . . Slashing . | . . . . . . . . . Piercing . | . . . . . . . . . Highest Corruption 7 | . . . . 1 7 7 7 7 Average Corruption 3 | . . . . 1 5 7 7 2 Corruption Purged . | . . . . . . . . . Corruption Blocked . | . . . . . . . . . Effects 13 | . . . . . 2 6 1 4 Message Errors 4 | . . . . . 1 2 . 1 Matter Fused 3 | . . . . . 1 2 . . Heat Flow Errors 1 | . . . . . . . . 1 Energy Discharges 2 | . . . . . . 2 . . Parts Fused 1 | . . . . . . . . 1 Data Loss (minor) 1 | . . . . . . . 1 . Data Loss (major) 1 | . . . . . . . . 1 Overload Shots 11 | . . . . . . . . 11 Overflow Damage 90 | . . . . . 10 . . 80 Projectiles 90 | . . . . . 10 . . 80 Explosions . | . . . . . . . . . Melee . | . . . . . . . . . Knockbacks 2 | . 1 . . . 1 . . . Impact 1 | . 1 . . . . . . . Kinetic 1 | . . . . . 1 . . . Secondary . | . . . . . . . . . Self-Inflicted Damage 87 | . . . . 22 . . . 65 Shots 2 | . . . . 1 . . . 1 Rammed 7 | . 3 . . . . . . 4 Targets Rammed 7 | . 3 . . . . . . 4 Kicked . | . . . . . . . . . Crushed . | . . . . . . . . . Highest Temperature 306 | . . 54 . 127 168 1 . 306 Average Temperature 64 | . . 19 . 46 59 1 . 102 Received Heat Transfer 450 | . . 66 . 195 18 18 . 153 Siege Activations . | . . . . . . . . . Martial Activations . | . . . . . . . . . Shielding Activations . | . . . . . . . . . Robots Disrupted . | . . . . . . . . . Combat Hostiles . | . . . . . . . . . Robots Corrupted . | . . . . . . . . . Combat Hostiles . | . . . . . . . . . Parts Fried . | . . . . . . . . . Impact Corruptions . | . . . . . . . . . Robots Melted . | . . . . . . . . . Combat Hostiles . | . . . . . . . . . Parts Melted 4 | . . 1 . . . . . 3 Heat Transferred 2463 | . . 744 . 296 111 74 . 1238 Parts Sabotaged . | . . . . . . . . . Parts Stolen . | . . . . . . . . . Parts Stripped . | . . . . . . . . . Power Chain Reactions . | . . . . . . . . . Alert | -11 -10 -10 -7 -5 -4 -4 -4 -3 ------- Run | Yrd Mat Sub Scr Fac Fac Upp Upp Res Maximum Alert Level 1 | . . . . 1 1 . . 1 Low Security (%) 87 | . 100 . . 89 50 . . 98 Level 1 12 | . . . . 10 49 . . 1 Level 2 . | . . . . . . . . . Level 3 . | . . . . . . . . . Level 4 . | . . . . . . . . . Level 5 . | . . . . . . . . . High Security . | . . . . . . . . . Max Security . | . . . . . . . . . Peak Influence 243 | . 7 . . 219 243 . . 232 Initial 102 | . . . . . 102 . . 33 Average 95 | . . . . 111 182 . . 70 Influence Increases 1370 | . 7 120 . 349 280 20 . 594 Destroy 0b10 Robot/C 620 | . . 100 . 140 140 20 . 220 Destroy 0b10 Robot/NC 5 | . . . . . 5 . . . Destroy Leader 140 | . . 20 . 40 30 . . 50 Successful Hack 105 | . 7 . . . 27 . . 71 Disable Machine 105 | . . . . 75 15 . . 15 Destroy Structure 170 | . . . . 34 18 . . 118 Partial Spotted 90 | . . . . 30 30 . . 30 Lose Combat Pursuer 135 | . . . . 30 15 . . 90 Influence Decreases 1148 | . 7 86 34 140 287 146 25 423 Entered New Map 250 | . . . 34 . 107 76 15 18 Time Decay 639 | . 7 86 . 110 110 70 10 246 Lost Part 209 | . . . . 30 30 . . 149 Lost Ally 50 | . . . . . 40 . . 10 Squads Dispatched 13 | . . . . 7 1 . . 5 Investigation 6 | . . . . 4 . . . 2 Extermination 2 | . . . . . . . . 2 Reinforcement 2 | . . . . . 1 . . 1 Assault . | . . . . . . . . . Garrison 3 | . . . . 3 . . . . Intercept . | . . . . . . . . . Searches Triggered . | . . . . . . . . . Construction Impeded 1 | . . . . . . . . 1 Haulers Reinforced . | . . . . . . . . . Active Scanning Responses . | . . . . . . . . . Cargo Convoy Interrupts . | . . . . . . . . . Stealth | -11 -10 -10 -7 -5 -4 -4 -4 -3 --------- Run | Yrd Mat Sub Scr Fac Fac Upp Upp Res Distress Signals 2 | . . . . . 1 . . 1 Communications Jammed . | . . . . . . . . . Distress Signals . | . . . . . . . . . Times Spotted 70 | . . 9 . 16 12 1 . 32 Peak Tracking Total 13 | . . 3 . 5 5 1 . 13 Tactical Retreats 6 | . . . . 2 1 . . 3 Traps | -11 -10 -10 -7 -5 -4 -4 -4 -3 ------- Run | Yrd Mat Sub Scr Fac Fac Upp Upp Res Traps Triggered 2 | . . . . 1 . . . 1 Indirectly . | . . . . . . . . . Trap Hack Attempts . | . . . . . . . . . Triggered . | . . . . . . . . . Disarmed . | . . . . . . . . . Reprogrammed . | . . . . . . . . . Reused . | . . . . . . . . . Traps Extracted . | . . . . . . . . . Installed . | . . . . . . . . . Triggered . | . . . . . . . . . Objects Rigged 7 | . . . . 7 . . . . Exploded 1 | . . . . 1 . . . . Machines | -11 -10 -10 -7 -5 -4 -4 -4 -3 ---------- Run | Yrd Mat Sub Scr Fac Fac Upp Upp Res Machines Disabled 7 | . . . . 5 1 . . 1 Max in Single Turn 4 | . . . . 4 1 . . 1 Machines Repaired . | . . . . . . . . . Machines Dismantled . | . . . . . . . . . Machines Sabotaged . | . . . . . . . . . Overloaded Fab Kills . | . . . . . . . . . Hacking | -11 -10 -10 -7 -5 -4 -4 -4 -3 --------- Run | Yrd Mat Sub Scr Fac Fac Upp Upp Res Machines Accessed 16 | . 1 . 1 6 1 . . 7 Terminals 9 | . 1 . . 2 . . . 6 Fabricators 1 | . . . . . 1 . . . Repair Stations 1 | . . . . 1 . . . . Recycling Units 3 | . . . . 2 . . . 1 Scanalyzers . | . . . . . . . . . Garrison Access 1 | . . . . 1 . . . . Total Hacks 33 | . 2 . 4 8 2 . . 17 Successful 17 | . 2 . 4 4 1 . . 6 Failed 16 | . . . . 4 1 . . 11 Catastrophic 3 | . . . . . 1 . . 2 Database Lockouts . | . . . . . . . . . Manual 12 | . . . . 6 1 . . 5 Terminals 20 | . 2 . . 3 . . . 15 Fabricators 2 | . . . . . 2 . . . Repair Stations 2 | . . . . 2 . . . . Recycling Units 4 | . . . . 2 . . . 2 Scanalyzers . | . . . . . . . . . Garrison Access 1 | . . . . 1 . . . . Terminal Hacks 9 | . 2 . 4 . . . . 3 Record 4 | . . . 4 . . . . . Terminal Index 1 | . . . . . . . . 1 Recycling Unit Index 1 | . . . . . . . . 1 Locate Traps 1 | . . . . . . . . 1 Surveillance Status 1 | . 1 . . . . . . . Zone Layout 1 | . 1 . . . . . . . Fabricator Hacks 1 | . . . . . 1 . . . Build 1 | . . . . . 1 . . . Repair Station Hacks . | . . . . . . . . . Recycling Unit Hacks . | . . . . . . . . . Scanalyzer . | . . . . . . . . . Garrison Access Hacks . | . . . . . . . . . Unauthorized Hacks 7 | . . . . 4 . . . 3 Terminals 4 | . . . . 2 . . . 2 Assimilate 1 | . . . . . . . . 1 Botnet 1 | . . . . . . . . 1 Detonate 1 | . . . . 1 . . . . Search 1 | . . . . 1 . . . . Fabricators . | . . . . . . . . . Repair Stations 3 | . . . . 2 . . . 1 Recycling Units . | . . . . . . . . . Fedlink 3 | . . . . 2 . . . 1 Scanalyzers . | . . . . . . . . . Garrison Access . | . . . . . . . . . Data Cores Recovered . | . . . . . . . . . Used . | . . . . . . . . . Hacking Detections 10 | . . . . 3 1 . . 6 Full Trace Events 2 | . . . . 1 . . . 1 Feedback Events . | . . . . . . . . . Feedback Blocked . | . . . . . . . . . Robot Schematics Acquired . | . . . . . . . . . Robots Built 2 | . . . . . 2 . . . Authchips . | . . . . . . . . . Time 50 | . . . . . 50 . . . Total Robot Build Rating 10 | . . . . . 10 . . . Part Schematics Acquired . | . . . . . . . . . Parts Built . | . . . . . . . . . Authchips . | . . . . . . . . . Time . | . . . . . . . . . Total Part Build Rating . | . . . . . . . . . Parts Repaired . | . . . . . . . . . Time . | . . . . . . . . . Parts Recycled . | . . . . . . . . . Recycled Matter . | . . . . . . . . . Retrieved Matter . | . . . . . . . . . Retrieved Components . | . . . . . . . . . Parts Scanalyzed . | . . . . . . . . . Part Schematics Acquired . | . . . . . . . . . Parts Damaged . | . . . . . . . . . Bothacking | -11 -10 -10 -7 -5 -4 -4 -4 -3 ------------ Run | Yrd Mat Sub Scr Fac Fac Upp Upp Res Used RIF Installer . | . . . . . . . . . Robots Hacked . | . . . . . . . . . Non-combat . | . . . . . . . . . Combat . | . . . . . . . . . Robot Hacks Applied . | . . . . . . . . . Relay Couplers Released . | . . . . . . . . . Fabnet Peak Effective % . | . . . . . . . . . Robots Rewired . | . . . . . . . . . Allies Hacked . | . . . . . . . . . Hacks Repelled . | . . . . . . . . . Allies | -11 -10 -10 -7 -5 -4 -4 -4 -3 -------- Run | Yrd Mat Sub Scr Fac Fac Upp Upp Res Total Allies 3 | . . . . . 2 . . 1 Largest Group 2 | . . . . . 2 . . 1 Highest-Rated Group 28 | . . . . . 28 . . 9 Highest-Rated Ally 14 | . . . . . 14 . . 9 Total Orders . | . . . . . . . . . Ally Attacks 1 | . . . . . 1 . . . Total Damage . | . . . . . . . . . Kills . | . . . . . . . . . Allies Corrupted . | . . . . . . . . . Allies Melted . | . . . . . . . . . Intel | -11 -10 -10 -7 -5 -4 -4 -4 -3 ------- Run | Yrd Mat Sub Scr Fac Fac Upp Upp Res Active Infowar (turns) 1740 | . . 189 335 283 238 155 22 518 Optics 1740 | . . 189 335 283 238 155 22 518 ECM 1 | . . . . . 1 . . . Robot Analysis Total . | . . . . . . . . . Derelict Logs Recovered 3 | . . . 2 . . 1 . . Drone Launches . | . . . . . . . . . Drone Recoveries . | . . . . . . . . . Exploration | -11 -10 -10 -7 -5 -4 -4 -4 -3 ------------- Run | Yrd Mat Sub Scr Fac Fac Upp Upp Res Turns Passed 2914 | . 116 544 966 283 238 155 22 590 Spaces Moved 2721 | 1 66 300 612 412 336 326 56 612 Core 245 | . . . . . . . . 245 Treads 947 | . 38 300 573 . . . . 36 Legs 29 | 1 28 . . . . . . . Wheels 123 | . . . 39 84 . . . . Hover 222 | . . . . 117 . . . 105 Flight 1155 | . . . . 211 336 326 56 226 Fastest Speed 26 | 120 120 160 90 32 26 34 34 34 Average Speed 86 | 120 143 160 155 48 32 34 34 64 Slowest Speed 360 | 120 160 160 160 120 37 34 34 360 Overloaded Moves . | . . . . . . . . . Propulsion Burnouts . | . . . . . . . . . Robots Hopped 11 | . . . . 5 4 . 1 1 Potential Cave-ins . | . . . . . . . . . Cave-ins Triggered . | . . . . . . . . . Exploration Rate (%) 23 | 2 11 28 49 17 8 65 12 19 Regions Visited 8 Branch Regions 4 Pre-discovered Areas 1 | . . . . 1 . . . . Known Exits Taken . | . . . . . . . . . Unknown Exits Taken 8 | 1 1 1 1 1 1 1 1 . Scrap Searched 9 | . . 3 . . . 4 2 . Spaces Dug 3 | . . . . . . . . 3 Terrain Destroyed 90 | . . . . 15 10 6 . 59 Melee . | . . . . . . . . . Projectile 33 | . . . . 1 10 6 . 16 AOE 57 | . . . . 14 . . . 43 Terrain Rammed . | . . . . . . . . . Walls Destroyed . | . . . . . . . . . Machines Disabled . | . . . . . . . . . Actions | -11 -10 -10 -7 -5 -4 -4 -4 -3 --------- Run | Yrd Mat Sub Scr Fac Fac Upp Upp Res Total 3086 | . 88 333 625 469 408 351 57 755 Wait 66 | . 1 6 1 2 11 6 3 36 Move 2695 | . 66 299 611 403 328 325 53 610 Hop 8 | . . . . 3 3 . 1 1 Pick Up 30 | . 6 1 2 11 2 3 . 5 Fast Attach 47 | . 2 3 2 9 11 1 . 19 Attach 25 | . 3 . 1 10 4 1 . 6 Detach 17 | . 1 . 1 5 3 . . 7 Swap 15 | . 1 3 3 2 4 . . 2 Drop 59 | . 6 4 4 10 10 3 . 22 Fire 117 | . . 17 . 13 32 12 . 43 Melee . | . . . . . . . . . Ram 4 | . . . . . . . . 4 Kick . | . . . . . . . . . Crush 2 | . 2 . . . . . . . Escape Stasis . | . . . . . . . . . Rewire . | . . . . . . . . . Trap . | . . . . . . . . . Miscellaneous 1 | . . . . 1 . . . . Route ------- -11/Scrapyard -10/Materials -10/Subcaves -7/Scraptown -5/Factory -4/Factory -4/Upper Caves -4/Upper Caves -3/Research History --------- Turn | Location | Event 1 | -11/Scrapyard | Discovered new exit (range 0) 1 | -11/Scrapyard | Entered Materials 111 | -10/Materials | Discovered new exit (range 6) 117 | -10/Materials | Entered Subcaves 118 | -10/Subcaves | Approached by a straggling Scientist 309 | -10/Subcaves | Build established: Mutant 403 | -10/Subcaves | Disturbed a concealed Subdweller 625 | -10/Subcaves | Shifting Twisted Machinery released Battle Cannon 632 | -10/Subcaves | Shifting Twisted Machinery released Sub. Monowheel 647 | -10/Subcaves | Scientist uncovered a shortcut to Scraptown 661 | -10/Subcaves | Entered Scraptown 783 | -7/Scraptown | Visited UFD Registry 783 | -7/Scraptown | Registered with UFD as "Flexichassis" 889 | -7/Scraptown | Scanned Subdweller tech in exchange for log data 893 | -7/Scraptown | Learned Factory emergency access door positions 895 | -7/Scraptown | Learned Factory stockpile data 1023 | -7/Scraptown | Visited Junk Repository 1124 | -7/Scraptown | Visited A0-MCA Data Center 1135 | -7/Scraptown | Given an A- rating by A0-MCA 1140 | -7/Scraptown | Found A0-MCA's Component Scanner 1180 | -7/Scraptown | Visited Chapter 10 1212 | -7/Scraptown | Visited Junk Repository 1263 | -7/Scraptown | Visited Curators Association 1295 | -7/Scraptown | Visited Abandonware Association 1314 | -7/Scraptown | Learned abandonware demo "MELTYB.EXE" 1377 | -7/Scraptown | Visited Infowarlord's Domain 1417 | -7/Scraptown | Found Spectral Analyzer 1564 | -7/Scraptown | Met Optimus 1564 | -7/Scraptown | Accepted into 0bPrime 1623 | -7/Scraptown | Discovered new exit (range 5) 1627 | -7/Scraptown | Entered Factory 1627 | -5/Factory | Evolved 10 slots: Power x1, Propulsion x5, Utility x2, Weapon x2 1704 | -5/Factory | Garrison activated, responded to threat 1813 | -5/Factory | Loaded intel: 8 recycling unit locations 1888 | -5/Factory | Learned location of Protoforge (-2) 1893 | -5/Factory | Discovered new exit (range 16) 1910 | -5/Factory | Entered another Factory area 1910 | -4/Factory | Evolved 2 slots: Utility x2 1946 | -4/Factory | Discovered new exit (range 6) 2093 | -4/Factory | Fabricated E-15 Imp? 2148 | -4/Factory | Entered Upper Caves 2197 | -4/Upper Caves | Attracted the attention of an 0b10 checkpoint 2243 | -4/Upper Caves | Encountered a Warlord checkpoint 2292 | -4/Upper Caves | Learned Research terminal intel 2296 | -4/Upper Caves | Discovered new exit (range 11) 2303 | -4/Upper Caves | Entered another Upper Caves area 2309 | -4/Upper Caves | Discovered new exit (range 17) 2325 | -4/Upper Caves | Entered Research 2325 | -3/Research | Evolved 2 slots: Utility x2 2326 | -3/Research | Loaded intel: 23 terminal locations 2545 | -3/Research | Lost 3 parts (2n1u) 2716 | -3/Research | Loaded intel: 5 recycling unit locations 2793 | -3/Research | Lost 9 parts (6n3u) 2862 | -3/Research | Core integrity fell below 50% 2865 | -3/Research | Found Prototype Launcher 2865 | -3/Research | Identified Adv. Micro-nuke Launcher 2869 | -3/Research | Found Faulty Adv. Micro-nuke Launcher 2872 | -3/Research | Found Adv. Micro-nuke Launcher 2911 | -3/Research | Core integrity fell below 20% 2915 | -3/Research | Destroyed by S-43 Plague with Heavy Machine Gun Last Messages --------------- 02893_ Slammed into R-10 Processor. 02895_ Destabilizing: System corrupted (+2). 02896_ Imp. Plasma Cutter destroyed. 02896_ Slammed into K-01 Serf. 02901_ C-30 ARC bursts open, deploying its payload. 02901_ H-77 Assassin unfolds itself. 02901_ Penetrated by Slug. 02904_ System corrupted: Substantial component data lost. 02904_ Acquired Q-thruster. 02907_ Penetrated by Slug. 02908_ S-43 Plague destroyed. 02908_ DSF Access disabled. 02908_ S-43 Plague destroyed. 02909_ Slug penetrates Wall. 02910_ Penetrated by Slug. 02912_ K-01 Serf collects debris. 02912_ Penetrated by Slug. 02912_ Q-thruster destroyed. 02912_ Slug penetrates Wall. 02913_ Penetrated by Slug. Map ----- +----------------------------------------------------+ | #??# #??# ?????????????????# #?? | | #??# #??# ??????????##???# ##? | | #??# #??# ?????????% ???#^ ^ ## | | #??# #??######## #??????? ???# ^^^ | | #??# ! #?????????? #??????" ???# | | #??###########??????????? #??????" + # | | #???????????????????????? +??????" # # | | #??????????????????????# #?????? # # | | #??????????????????????# #?????? + #####+ | | #??????????????????????# #?????? #### #????? | | #??????????????????????# #??????#/#???# #????? | | #??????????????????????# #??????# #???# #????? | | #??????????????????????# #??????# #???# #????? | | #??????????????????????+ ######## ##### ###### | | #??????????????????????# | | #??????????????????????# ########/############ | | #??????????????????????# # p #??????????? | | ##??????????????????????# # p #??????????? | | ?????????????########### # #??????????? | | ???????????# # # [ #??????????? | | #??????????# #??????????? | | #??????????# # #??????????? | | #??????????# !! # #??????????? | | #??????????# !! #??????????? | | #??????????# #??????????? | | #??????????# [ ! @ ## #####??????????? | | #??????????# Y # ###??????????????? | | ]#??????????######## #?#????????????????? | | #?????????????????## % ##??????????????????? | | #?????????????????? ??????????????????? | | ####????????????????? ?????????????????? | | ???????????????????? ????????????????? | | ???????????????????* #% s ???????????????? | | ??????????????????** # # ??????????????? | | ?????????????????? + + "?????????????? | | ????????????????? #sk # "?????????????? | | ???????????????? # #? ?????????????? | | ???????????????? ? #?? ??????????????? | | ??????????????????#####??#+#+#???????????????????? | | ?????????????????????????????????????????????????? | | ?????????????????????????????????????????????????? | | ?????????????????????????????????????????????????? | | ?????????????????????????????????????????????????? | | ?????????????????????????????????????????????????? | | ?????????????????????????????????????????????????? | | ?????????????????????????????????????????????????? | | ?????????????????????????????????????????????????? | | ?????????????????????????????????????????????????? | | ?????????????????????????????????????????????????? | | ?????????????????????????????????????????????????? | +----------------------------------------------------+ Best States ------------- Heat Dissipation 96 Energy Generation 41 Energy Capacity 420 Matter Stores 300 Matter Capacity 300 Sight Range 24 Terrain Scan Density 10 Resistance: EM 25 Evasion (%) 64 Target Analysis 5 Core Analysis 6 Recoil Reduction 2 Particle Charging 20 Defensive Hacking 11 Item Schematics ----------------- None Robot Schematics ------------------ None Fabricated ------------ E-15 Imp | x2 | -4/Factory | Preloaded Repaired ---------- Nothing Alien Tech Used ----------------- None Achievements -------------- None Challenges ------------ None Game ------ Seed WeaponsArchitectLauncher Manual? 0 Play Time 00:28:42 Cumulative 1021.7 hours Start 2025.05.07 @ 15:52:26 End 2025.05.07 @ 16:22:53 Sessions 1 Manual Loads 0 Difficulty Rogue Special Mode None Game No. 1251 Rogue 969 Adventurer 124 Explorer 158 Win Type - Total 44 Types 31/0/8/3/1/0/0/1/0/0 Lore% 91 Gallery% 85 Achievement% 79 Wizard Run 0 Options --------- Layout 0 ASCII 0 Keyboard 1 Movement Numpad Keybinds 0 Fullscreen 2 Font 18/X11 Map View 76x50 Zoom Use 3% Tactical HUD 1 Map Filters NONE Filters NONE Steam 1 RUN: 88cb624a-04e6-462d-a36e-b3ca94028552